[Event "2nd Goa GM Open 2019"]
[Site "Goa"]
[Date "2019.06.20"]
[Round "4.13"]
[White "Raja Rithvik R"]
[Black "Malakhatko, Vadim"]
[Result "0-1"]
[ECO "A11"]
[WhiteElo "2381"]
[BlackElo "2505"]
[Annotator "ChessBase"]
[PlyCount "108"]
[EventDate "2019.06.17"]
[EventType "swiss"]
[EventCountry "IND"]
[SourceTitle "playchess.com"]
[Source "ChessBase"]
[SourceQuality "1"]
[TimeControl "5400+30"]

1. c4 {[%emt 0:00:00]} c6 {[%emt 0:25:32]} 2. Nf3 {[%emt 0:00:00]} d5 {[%emt 0:00:07]} 3. e3 {[%emt 0:00:00]} Nf6 {[%emt 0:00:06]} 4. Nc3 {[%emt 0:00:02]} a6 {[%emt 0:00:06]} 5. Qc2 {[%emt 0:00:38]} e6 {[%emt 0:04:13]} 6. b3 {[%emt 0:00:16]} c5 {[%emt 0:03:03]} 7. Bb2 {[%emt 0:02:28]} Nc6 {[%emt 0:00:16]} 8. a3 {[%emt 0:07:20]} d4 {[%emt 0:06:07]} 9. exd4 {[%emt 0:00:12]} cxd4 {[%emt 0:00:14]} 10. Ne4 {[%emt 0:00:13]} Nxe4 {[%emt 0:06:57]} 11. Qxe4 {[%emt 0:00:03]} f5 {[%emt 0:00:12]} 12. Qe2 {[%emt 0:03:00]} Be7 {[%emt 0:00:34]} 13. g3 {[%emt 0:01:22]} Bf6 {[%emt 0:00:21]} 14. d3 {[%emt 0:00:16]} O-O {[%emt 0:00:07]} 15. Bg2 {[%emt 0:00:06]} e5 {[%emt 0:01:20]} 16. O-O {[%emt 0:06:54]} Re8 {[%emt 0:02:09]} 17. Nd2 {[%emt 0:05:12]} Be6 {[%emt 0:00:23]} 18. b4 {[%emt 0:03:16]} e4 {[%emt 0:06:25]} 19. Rfe1 {[%emt 0:00:55]} Bf7 {[%emt 0:17:44]} 20. Rab1 {[%emt 0:21:19]} exd3 {[%emt 0:02:43]} 21. Qxd3 {[%emt 0:00:11]} Qd7 {[%emt 0:03:29]} 22. Nf3 {[%emt 0:07:31]} Rac8 {[%emt 0:07:31]} 23. Rxe8+ {[%emt 0:03:43]} Rxe8 {[%emt 0:00:08]} 24. Rd1 {[%emt 0:00:07]} Rd8 {[%emt 0:00:31]} 25. Re1 {[%emt 0:03:07]} h6 {[%emt 0:05:25]} 26. h4 {[%emt 0:01:16]} f4 {[%emt 0:02:00]} 27. Kh2 {[%emt 0:00:22]} fxg3+ {[%emt 0:00:10]} 28. fxg3 {[%emt 0:00:04]} Be6 {[%emt 0:03:01]} 29. Nd2 {[%emt 0:08:53]} Ne5 {[%emt 0:00:39]} 30. Qe4 {[%emt 0:10:29]} b5 {[%emt 0:00:40]} 31. cxb5 {[%emt 0:01:03]} axb5 {[%emt 0:00:18]} 32. Qb1 {[%emt 0:03:30]} Ng4+ {[%emt 0:00:39]} 33. Kh1 {[%emt 0:00:28]} Ne3 {[%emt 0:01:25]} 34. Ne4 {[%emt 0:01:14]} Be7 {[%emt 0:00:09]} 35. Qd3 {[%emt 0:01:04]} Nxg2 {[%emt 0:01:35]} 36. Kxg2 {[%emt 0:00:02]} Qd5 {[%emt 0:00:38]} 37. Kh2 {[%emt 0:02:36]} Qf5 {[%emt 0:00:22]} 38. Qf1 {[%emt 0:01:04]} Qxf1 {[%emt 0:00:57]} 39. Rxf1 {[%emt 0:00:01]} d3 {[%emt 0:00:09]} 40. Rd1 {[%emt 0:00:52]} Bf5 {[%emt 0:00:28]} 41. Nf2 {[%emt 0:00:21]} Rd5 {[%emt 0:00:59]} 42. Kg2 {[%emt 0:01:42]} g5 {[%emt 0:00:04]} 43. h5 {[%emt 0:03:15]} g4 {[%emt 0:00:31]} 44. Bc1 {[%emt 0:00:09]} Kg7 {[%emt 0:00:44]} 45. Bf4 {[%emt 0:03:56]} Bg5 {[%emt 0:00:07]} 46. Bxg5 {[%emt 0:00:45]} hxg5 {[%emt 0:00:04]} 47. Rd2 {[%emt 0:01:06]} Kf6 {[%emt 0:00:09]} 48. Nd1 {[%emt 0:00:11]} Ke5 {[%emt 0:00:27]} 49. Ne3 {[%emt 0:00:49]} Be4+ {[%emt 0:00:05]} 50. Kf2 {[%emt 0:00:03]} Rd8 {[%emt 0:00:08]} 51. Nxg4+ {[%emt 0:00:19]} Kd4 {[%emt 0:00:06]} 52. h6 {[%emt 0:00:07]} Kc3 {[%emt 0:02:20]} 53. Ke3 {[%emt 0:01:58]} Bg6 {[%emt 0:00:44]} 54. Nf6 {[%emt 0:00:38]} Rd6 {[%emt 0:00:16] Kd4+} 0-1

[Event "2nd Goa GM Open 2019"]
[Site "Goa"]
[Date "2019.06.20"]
[Round "4.14"]
[White "Rohith Krishna S"]
[Black "Anurag, Mhamal"]
[Result "1/2-1/2"]
[ECO "A05"]
[WhiteElo "2347"]
[BlackElo "2497"]
[Annotator "ChessBase"]
[PlyCount "59"]
[EventDate "2019.06.17"]
[EventType "swiss"]
[EventCountry "IND"]
[SourceTitle "playchess.com"]
[Source "ChessBase"]
[SourceQuality "1"]
[TimeControl "5400+30"]

1. Nf3 {[%emt 0:00:00]} Nf6 {[%emt 0:02:39]} 2. d4 {[%emt 0:00:00]} c5 {[%emt 0:00:41]} 3. e3 {[%emt 0:00:41]} g6 {[%emt 0:00:13]} 4. Be2 {[%emt 0:00:26]} Bg7 {[%emt 0:00:04]} 5. O-O {[%emt 0:00:05]} cxd4 {[%emt 0:09:10]} 6. exd4 {[%emt 0:00:31]} O-O {[%emt 0:00:10]} 7. d5 {[%emt 0:10:40]} d6 8. c4 {[%emt 0:02:47]} Ne4 {[%emt 0:15:15]} 9. Qc2 {[%emt 0:07:22]} Nc5 {[%emt 0:00:27]} 10. Be3 {[%emt 0:04:26]} Bf5 {[%emt 0:02:37]} 11. Qd2 {[%emt 0:00:53]} Ne4 {[%emt 0:03:14]} 12. Qc1 {[%emt 0:00:49]} Na6 {[%emt 0:00:16]} 13. Nd4 {[%emt 0:05:12]} Bd7 {[%emt 0:12:56]} 14. Nc3 {[%emt 0:05:20]} Nxc3 {[%emt 0:01:47]} 15. Qxc3 {[%emt 0:02:16]} Nc5 {[%emt 0:06:39]} 16. Rfd1 {[%emt 0:08:20]} a5 {[%emt 0:10:00]} 17. Qd2 {[%emt 0:06:46]} a4 {[%emt 0:08:07]} 18. Bh6 {[%emt 0:05:31]} Ne4 {[%emt 0:07:58]} 19. Qe3 {[%emt 0:02:00]} Bxh6 {[%emt 0:00:17]} 20. Qxh6 {[%emt 0:00:06]} Nf6 {[%emt 0:00:42]} 21. Qd2 {[%emt 0:03:56]} Qb6 {[%emt 0:00:53]} 22. Rac1 {[%emt 0:02:01]} Rfc8 {[%emt 0:03:31]} 23. Bf1 {[%emt 0:01:49]} Re8 {[%emt 0:04:08]} 24. h3 {[%emt 0:02:05]} Rf8 {[%emt 0:00:00]} 25. Be2 {[%emt 0:00:00]} Rfc8 {[%emt 0:00:00]} 26. Bf1 {[%emt 0:00:00]} Re8 {[%emt 0:02:26]} 27. Qe3 {[%emt 0:01:30]} Qa5 {[%emt 0:00:30]} 28. Qd2 Qb6 29. Qe3 Qa5 30. Qd2 1/2-1/2

[Event "2nd Goa GM Open 2019"]
[Site "Goa"]
[Date "2019.06.20"]
[Round "4.15"]
[White "Sidhant, Mohapatra"]
[Black "Kunte, Abhijit"]
[Result "1/2-1/2"]
[ECO "C84"]
[WhiteElo "2351"]
[BlackElo "2478"]
[Annotator "ChessBase"]
[PlyCount "36"]
[EventDate "2019.06.17"]
[EventType "swiss"]
[EventCountry "IND"]
[SourceTitle "playchess.com"]
[Source "ChessBase"]
[SourceQuality "1"]
[TimeControl "5400+30"]

1. e4 {[%emt 0:00:00]} e5 {[%emt 0:02:30]} 2. Nf3 {[%emt 0:00:47]} Nc6 {[%emt 0:02:07]} 3. Bb5 {[%emt 0:00:25]} a6 {[%emt 0:00:13]} 4. Ba4 {[%emt 0:00:05]} Nf6 {[%emt 0:00:07]} 5. O-O {[%emt 0:00:41]} Be7 {[%emt 0:00:06]} 6. d3 {[%emt 0:00:15]} d6 {[%emt 0:00:58]} 7. c3 {[%emt 0:00:14]} O-O {[%emt 0:08:03]} 8. Nbd2 {[%emt 0:01:08]} Re8 {[%emt 0:00:26]} 9. Re1 {[%emt 0:00:21]} Bf8 {[%emt 0:00:34]} 10. Nf1 {[%emt 0:00:52]} h6 {[%emt 0:04:36]} 11. Ng3 {[%emt 0:00:31]} b5 {[%emt 0:01:45]} 12. Bc2 {[%emt 0:00:09]} g6 {[%emt 0:02:28]} 13. h3 {[%emt 0:01:03]} Bd7 {[%emt 0:00:47]} 14. Bd2 {[%emt 0:05:45]} Bg7 {[%emt 0:01:46]} 15. Qc1 {[%emt 0:00:48]} Kh7 {[%emt 0:00:08]} 16. Qd1 {[%emt 0:00:10]} Kg8 {[%emt 0:01:07]} 17. Qc1 {[%emt 0:00:04]} Kh7 {[%emt 0:00:06]} 18. Qd1 {[%emt 0:00:04]} Kg8 {[%emt 0:01:27]} 1/2-1/2

[Event "2nd Goa GM Open 2019"]
[Site "Goa"]
[Date "2019.06.20"]
[Round "4.16"]
[White "Vignesh N R"]
[Black "Ram, S. Krishnan"]
[Result "1/2-1/2"]
[ECO "B76"]
[WhiteElo "2459"]
[BlackElo "2152"]
[Annotator "ChessBase"]
[PlyCount "62"]
[EventDate "2019.06.17"]
[EventType "swiss"]
[EventCountry "IND"]
[SourceTitle "playchess.com"]
[Source "ChessBase"]
[SourceQuality "1"]
[TimeControl "5400+30"]

1. e4 {[%emt 0:00:00]} c5 {[%emt 0:00:00]} 2. Nf3 {[%emt 0:00:00]} d6 {[%emt 0:00:13]} 3. d4 {[%emt 0:02:56]} cxd4 {[%emt 0:00:03]} 4. Nxd4 {[%emt 0:00:04]} Nf6 {[%emt 0:00:09]} 5. Nc3 {[%emt 0:00:02]} g6 {[%emt 0:00:07]} 6. Be3 {[%emt 0:00:29]} Bg7 {[%emt 0:00:03]} 7. f3 {[%emt 0:00:10]} O-O {[%emt 0:00:05]} 8. Qd2 {[%emt 0:00:03]} Nc6 9. O-O-O {[%emt 0:00:05]} Nxd4 {[%emt 0:00:19]} 10. Bxd4 {[%emt 0:00:12]} Be6 {[%emt 0:00:03]} 11. Kb1 {[%emt 0:00:51]} Qc7 {[%emt 0:00:06]} 12. h4 {[%emt 0:04:49]} Rfc8 {[%emt 0:00:06]} 13. h5 {[%emt 0:02:39]} Qa5 {[%emt 0:11:34]} 14. a3 {[%emt 0:08:31]} Rab8 {[%emt 0:05:22]} 15. hxg6 {[%emt 0:02:37]} hxg6 {[%emt 0:03:01]} 16. Ne2 {[%emt 0:26:32]} Qxd2 {[%emt 0:02:09]} 17. Rxd2 {[%emt 0:00:02]} a6 {[%emt 0:04:07]} 18. Nf4 {[%emt 0:00:55]} Nd7 {[%emt 0:05:37]} 19. Nxe6 {[%emt 0:14:23]} fxe6 {[%emt 0:00:13]} 20. Ba7 {[%emt 0:00:14]} Ra8 {[%emt 0:00:07]} 21. Be3 {[%emt 0:00:07]} Kf7 {[%emt 0:00:12]} 22. Be2 {[%emt 0:00:57]} Rh8 {[%emt 0:00:06]} 23. Rdd1 {[%emt 0:00:05]} Rxh1 {[%emt 0:00:07]} 24. Rxh1 {[%emt 0:00:02]} Rh8 {[%emt 0:00:06]} 25. Rxh8 {[%emt 0:00:08]} Bxh8 {[%emt 0:00:02]} 26. c4 {[%emt 0:00:41]} Ne5 {[%emt 0:00:35]} 27. Kc2 {[%emt 0:00:44]} Nc6 {[%emt 0:00:07]} 28. b4 {[%emt 0:00:34]} Nd4+ {[%emt 0:00:07]} 29. Kd3 {[%emt 0:00:27]} Nxe2 {[%emt 0:00:09]} 30. Kxe2 {[%emt 0:00:03]} Ke8 {[%emt 0:00:07]} 31. Kd3 {[%emt 0:00:02]} Kd7 {[%emt 0:00:06]} 1/2-1/2

[Event "2nd Goa GM Open 2019"]
[Site "Goa"]
[Date "2019.06.20"]
[Round "4.17"]
[White "Rathnakaran, K.."]
[Black "Nguyen, Van Huy"]
[Result "0-1"]
[ECO "B10"]
[WhiteElo "2338"]
[BlackElo "2456"]
[Annotator "ChessBase"]
[PlyCount "62"]
[EventDate "2019.06.17"]
[EventType "swiss"]
[EventCountry "IND"]
[SourceTitle "playchess.com"]
[Source "ChessBase"]
[SourceQuality "1"]
[TimeControl "5400+30"]

1. e4 {[%emt 0:00:00]} c6 {[%emt 0:00:05]} 2. d3 {[%emt 0:00:00]} d5 {[%emt 0:00:46]} 3. Nd2 {[%emt 0:00:00]} e5 {[%emt 0:00:46]} 4. g3 {[%emt 0:00:00]} Bd6 {[%emt 0:01:45]} 5. Bg2 {[%emt 0:00:08]} Nf6 {[%emt 0:00:08]} 6. Ngf3 O-O {[%emt 0:00:12]} 7. O-O {[%emt 0:00:23]} Bg4 {[%emt 0:00:22]} 8. h3 {[%emt 0:00:10]} Bh5 {[%emt 0:00:04]} 9. Qe1 {[%emt 0:00:19]} Nbd7 {[%emt 0:00:17]} 10. Nh4 {[%emt 0:00:39]} Re8 {[%emt 0:02:16]} 11. f4 {[%emt 0:12:06]} exf4 {[%emt 0:12:58]} 12. gxf4 {[%emt 0:00:30]} dxe4 {[%emt 0:00:40]} 13. dxe4 {[%emt 0:00:07]} Be7 {[%emt 0:05:35]} 14. Nf5 {[%emt 0:04:25]} Bc5+ {[%emt 0:01:40]} 15. Kh2 {[%emt 0:01:01]} Bg6 {[%emt 0:01:21]} 16. Ng3 {[%emt 0:03:13]} Nxe4 {[%emt 0:03:57]} 17. Ndxe4 {[%emt 0:01:20]} f5 {[%emt 0:00:11]} 18. Qc3 {[%emt 0:04:24]} fxe4 {[%emt 0:00:33]} 19. Rd1 {[%emt 0:01:50]} Bf2 {[%emt 0:05:09]} 20. f5 {[%emt 0:11:26]} e3 {[%emt 0:10:50]} 21. Kh1 {[%emt 0:34:36]} Bxg3 {[%emt 0:03:59]} 22. Bxe3 {[%emt 0:01:46]} Bxf5 {[%emt 0:02:27]} 23. Qb3+ {[%emt 0:01:49]} Be6 {[%emt 0:00:46]} 24. Qxb7 {[%emt 0:00:12]} Qh4 {[%emt 0:00:47]} 25. Rd4 {[%emt 0:04:40]} Qh5 {[%emt 0:00:46]} 26. Qxc6 {[%emt 0:00:05]} Rac8 {[%emt 0:01:06]} 27. Qb7 {[%emt 0:01:36]} Nf6 {[%emt 0:01:36]} 28. Qf3 {[%emt 0:06:29]} Qxf3 {[%emt 0:00:18]} 29. Bxf3 {[%emt 0:00:03]} Bxh3 {[%emt 0:00:20]} 30. Rd3 {[%emt 0:00:40]} Bf5 {[%emt 0:01:05]} 31. Rb3 {[%emt 0:00:05]} Bxc2 {[%emt 0:00:36]} 0-1

[Event "2nd Goa GM Open 2019"]
[Site "Goa"]
[Date "2019.06.20"]
[Round "4.18"]
[White "Khusenkhojaev, Muhammad"]
[Black "Aaryan Varshney"]
[Result "1/2-1/2"]
[ECO "D58"]
[WhiteElo "2446"]
[BlackElo "2196"]
[Annotator "NA"]
[PlyCount "144"]
[EventDate "2019.06.17"]
[EventType "swiss"]
[EventCountry "IND"]
[SourceTitle "playchess.com"]
[Source "ChessBase"]
[SourceQuality "1"]
[TimeControl "5400+30"]

1. Nf3 {[%emt 0:00:00]} Nf6 {[%emt 0:00:00]} 2. c4 {[%emt 0:00:00]} e6 {[%emt 0:00:00]} 3. Nc3 {[%emt 0:00:00]} d5 {[%emt 0:00:00]} 4. d4 {[%emt 0:00:00]} Be7 {[%emt 0:00:00]} 5. Bg5 {[%emt 0:00:24]} O-O {[%emt 0:00:00]} 6. e3 {[%emt 0:00:05]} h6 {[%emt 0:00:05]} 7. Bh4 {[%emt 0:00:06]} b6 {[%emt 0:00:10]} 8. Rc1 {[%emt 0:00:22]} Bb7 {[%emt 0:00:11]} 9. cxd5 {[%emt 0:00:41]} Nxd5 {[%emt 0:00:17]} 10. Bxe7 {[%emt 0:02:17]} Qxe7 {[%emt 0:00:42]} 11. Be2 {[%emt 0:01:12]} Nf6 {[%emt 0:01:17]} 12. O-O {[%emt 0:02:03]} Nbd7 {[%emt 0:00:09]} 13. Qa4 {[%emt 0:01:44]} c5 {[%emt 0:00:30]} 14. Qa3 {[%emt 0:00:24]} Rfc8 {[%emt 0:03:22]} 15. Na4 Ne4 {[%emt 0:03:01]} 16. Bb5 {[%emt 0:04:32]} Ng5 {[%emt 0:05:10]} 17. Ne1 {[%emt 0:03:46]} Ne4 {[%emt 0:17:37]} 18. f3 {[%emt 0:02:19]} Nd6 {[%emt 0:00:46]} 19. Bxd7 {[%emt 0:00:30]} Qxd7 {[%emt 0:00:01]} 20. dxc5 {[%emt 0:00:20]} Ba6 {[%emt 0:01:15]} 21. Rf2 {[%emt 0:15:14]} Nc4 {[%emt 0:01:28]} 22. Qb3 {[%emt 0:04:11]} b5 {[%emt 0:07:01]} 23. Nc3 {[%emt 0:00:48]} Rc7 24. c6 Rxc6 {[%emt 0:00:40]} 25. Rd1 {[%emt 0:00:53]} Rc5 {[%emt 0:01:11]} 26. Nd3 {[%emt 0:06:44]} Qc7 {[%emt 0:16:25]} 27. g4 {[%emt 0:00:19]} Rg5 {[%emt 0:00:19]} 28. Re1 {[%emt 0:07:26]} Ne5 {[%emt 0:11:44]} 29. Ne4 {[%emt 0:15:50]} Nxd3 {[%emt 0:01:12]} 30. Qxd3 {[%emt 0:00:01]} Rd5 {[%emt 0:00:21]} 31. Qc3 {[%emt 0:00:37]} Qxc3 {[%emt 0:06:19]} 32. Nxc3 {[%emt 0:00:10]} Rd3 {[%emt 0:01:00]} 33. Rc2 {[%emt 0:01:45]} Rc8 {[%emt 0:00:48]} 34. a3 {[%emt 0:00:10]} Bb7 {[%emt 0:01:03]} 35. Kf2 {[%emt 0:00:06]} a5 {[%emt 0:00:32]} 36. Rec1 {[%emt 0:00:12]} b4 {[%emt 0:01:04]} 37. axb4 {[%emt 0:00:33]} axb4 {[%emt 0:00:01]} 38. Ne2 {[%emt 0:04:00]} Rxc2 {[%emt 0:00:47]} 39. Rxc2 {[%emt 0:00:01]} b3 {[%emt 0:00:33]} 40. Rc7 {[%emt 0:01:59]} Ba6 {[%emt 0:00:28]} 41. Rc6 {[%emt 0:00:41]} Bb5 {[%emt 0:01:46]} 42. Rc5 {[%emt 0:00:15]} Ba6 {[%emt 0:01:25]} 43. Rc6 {[%emt 0:01:19]} Bb5 {[%emt 0:04:20]} 44. Rc5 {[%emt 0:02:20]} Ba6 {[%emt 0:00:21]} 45. Ra5 {[%emt 0:00:06]} Bb7 {[%emt 0:00:40]} 46. Rb5 {[%emt 0:00:09]} Bc6 {[%emt 0:01:29]} 47. Rb8+ {[%emt 0:00:34]} Kh7 {[%emt 0:00:07]} 48. Nd4 {[%emt 0:00:08]} Bd5 {[%emt 0:00:46]} 49. Rb4 {[%emt 0:05:10]} Rd2+ {[%emt 0:00:15]} 50. Ke1 {[%emt 0:00:33]} Rxb2 {[%emt 0:00:59]} 51. e4 {[%emt 0:00:05]} Ba8 {[%emt 0:00:43]} 52. h4 {[%emt 0:02:07]} Rb1+ {[%emt 0:01:14]} 53. Kd2 {[%emt 0:00:08]} b2 {[%emt 0:00:24]} 54. h5 {[%emt 0:05:36]} e5 {[%emt 0:00:51]} 55. Nc2 {[%emt 0:00:05]} Rf1 {[%emt 0:00:26]} 56. Ne1 {[%emt 0:00:05]} g6 {[%emt 0:03:49]} 57. hxg6+ {[%emt 0:00:11]} Kxg6 {[%emt 0:00:15]} 58. Ke2 {[%emt 0:00:27]} Rh1 {[%emt 0:00:54]} 59. Kf2 {[%emt 0:00:04]} h5 {[%emt 0:01:32]} 60. gxh5+ {[%emt 0:00:04]} Rxh5 {[%emt 0:00:10]} 61. Rxb2 {[%emt 0:00:21]} Rh8 {[%emt 0:03:01]} 62. Rb6+ {[%emt 0:00:24]} Kg5 {[%emt 0:00:31]} 63. Nd3 {[%emt 0:01:45]} f6 {[%emt 0:00:07]} 64. Kg3 {[%emt 0:01:23]} Rc8 {[%emt 0:00:31]} 65. Rd6 {[%emt 0:00:58]} Rc3 {[%emt 0:00:57]} 66. Rd8 {[%emt 0:04:26]} Bb7 {[%emt 0:01:19]} 67. Nf2 {[%emt 0:01:43]} f5 {[%emt 0:01:04]} 68. Re8 {[%emt 0:01:12]} fxe4 {[%emt 0:00:26]} 69. Rxe5+ {[%emt 0:00:19]} Kf6 {[%emt 0:00:13]} 70. Rxe4 {[%emt 0:00:44]} Rxf3+ {[%emt 0:00:14]} 71. Kxf3 {[%emt 0:00:04]} Bxe4+ {[%emt 0:00:03]} 72. Nxe4+ {[%emt 0:00:06]} Ke5 1/2-1/2

[Event "2nd Goa GM Open 2019"]
[Site "Goa"]
[Date "2019.06.20"]
[Round "4.21"]
[White "Gajwa Ankit"]
[Black "Turov, Maxim"]
[Result "1/2-1/2"]
[ECO "B32"]
[WhiteElo "2273"]
[BlackElo "2579"]
[Annotator "ChessBase"]
[PlyCount "60"]
[EventDate "2019.06.17"]
[EventType "swiss"]
[EventCountry "IND"]
[SourceTitle "playchess.com"]
[Source "ChessBase"]
[SourceQuality "1"]
[TimeControl "5400+30"]

1. e4 {[%emt 0:02:38]} c5 {[%emt 0:00:00]} 2. Nf3 {[%emt 0:00:15]} Nc6 {[%emt 0:00:00]} 3. d4 {[%emt 0:00:18]} cxd4 {[%emt 0:00:00]} 4. Nxd4 {[%emt 0:00:04]} e5 {[%emt 0:00:00]} 5. Nb5 {[%emt 0:00:13]} d6 {[%emt 0:00:00]} 6. N1c3 {[%emt 0:00:22]} a6 {[%emt 0:00:08]} 7. Na3 {[%emt 0:00:05]} Be7 {[%emt 0:01:08]} 8. Nc4 {[%emt 0:00:38]} b5 {[%emt 0:06:35]} 9. Ne3 {[%emt 0:00:09]} Nf6 {[%emt 0:00:05]} 10. g3 {[%emt 0:01:38]} h5 {[%emt 0:00:41]} 11. Bg2 {[%emt 0:00:49]} h4 {[%emt 0:01:26]} 12. O-O {[%emt 0:01:57]} hxg3 {[%emt 0:08:35]} 13. fxg3 {[%emt 0:02:25]} Nd4 {[%emt 0:05:26]} 14. Ncd5 {[%emt 0:02:01]} Nxd5 {[%emt 0:00:57]} 15. Nxd5 {[%emt 0:06:43]} Be6 {[%emt 0:04:25]} 16. c3 {[%emt 0:08:06]} Nc6 {[%emt 0:00:16]} 17. Be3 {[%emt 0:02:19]} Rb8 {[%emt 0:00:06]} 18. a4 {[%emt 0:11:45]} b4 {[%emt 0:02:59]} 19. a5 {[%emt 0:06:34]} bxc3 {[%emt 0:04:13]} 20. bxc3 {[%emt 0:00:37]} O-O {[%emt 0:09:36]} 21. Qe2 {[%emt 0:06:43]} Rb5 {[%emt 0:20:49]} 22. Bb6 {[%emt 0:02:36]} Qc8 {[%emt 0:08:16]} 23. Nc7 {[%emt 0:21:04]} Rb3 {[%emt 0:08:45]} 24. Qxa6 {[%emt 0:01:03]} Qxa6 {[%emt 0:00:46]} 25. Nxa6 {[%emt 0:00:59]} Bc4 {[%emt 0:00:12]} 26. Nc7 {[%emt 0:00:47]} Bxf1 {[%emt 0:01:23]} 27. Bxf1 {[%emt 0:00:22]} Rb8 {[%emt 0:00:09]} 28. Bb5 {[%emt 0:11:45]} Nxa5 {[%emt 0:05:28]} 29. Bxa5 {[%emt 0:01:26]} R3xb5 {[%emt 0:03:46]} 30. Nxb5 {[%emt 0:00:06]} Rxb5 {[%emt 0:00:08]} 1/2-1/2

[Event "2nd Goa GM Open 2019"]
[Site "Goa"]
[Date "2019.06.20"]
[Round "4.22"]
[White "Paichadze, Luka"]
[Black "Bhambure, Shantanu"]
[Result "1-0"]
[ECO "B53"]
[WhiteElo "2557"]
[BlackElo "2248"]
[Annotator "ChessBase"]
[PlyCount "91"]
[EventDate "2019.06.17"]
[EventType "swiss"]
[EventCountry "IND"]
[SourceTitle "playchess.com"]
[Source "ChessBase"]
[SourceQuality "1"]
[TimeControl "5400+30"]

1. e4 {[%emt 0:00:00]} c5 {[%emt 0:03:23]} 2. Nf3 {[%emt 0:01:22]} d6 {[%emt 0:00:05]} 3. d4 {[%emt 0:00:04]} cxd4 {[%emt 0:00:04]} 4. Qxd4 {[%emt 0:00:03]} a6 {[%emt 0:00:11]} 5. h3 {[%emt 0:00:18]} Nc6 {[%emt 0:01:03]} 6. Qe3 {[%emt 0:00:08]} g6 {[%emt 0:01:04]} 7. c4 {[%emt 0:00:10]} Bg7 {[%emt 0:00:22]} 8. Be2 {[%emt 0:00:06]} Nf6 {[%emt 0:00:16]} 9. O-O {[%emt 0:00:12]} O-O {[%emt 0:00:18]} 10. Nc3 {[%emt 0:00:04]} Nd7 {[%emt 0:00:58]} 11. Rb1 {[%emt 0:02:59]} Nde5 {[%emt 0:01:43]} 12. Rd1 Nxf3+ {[%emt 0:02:00]} 13. Bxf3 {[%emt 0:00:19]} f5 {[%emt 0:01:28]} 14. exf5 {[%emt 0:17:14]} Bxf5 {[%emt 0:00:18]} 15. Be4 {[%emt 0:00:06]} Qd7 {[%emt 0:08:04]} 16. Nd5 {[%emt 0:00:42]} Rad8 {[%emt 0:08:03]} 17. b3 {[%emt 0:03:53]} e6 {[%emt 0:08:39]} 18. Nb6 {[%emt 0:02:39]} Qf7 {[%emt 0:02:06]} 19. Bxf5 {[%emt 0:00:19]} gxf5 {[%emt 0:09:27]} 20. f4 {[%emt 0:03:54]} d5 {[%emt 0:05:29]} 21. cxd5 {[%emt 0:08:46]} exd5 {[%emt 0:00:04]} 22. Qg3 {[%emt 0:08:03]} Rfe8 {[%emt 0:03:56]} 23. Bb2 {[%emt 0:01:04]} d4 {[%emt 0:01:12]} 24. Nc4 {[%emt 0:02:37]} Qd5 {[%emt 0:08:07]} 25. Rd3 {[%emt 0:06:25]} b5 {[%emt 0:06:46]} 26. Nd2 {[%emt 0:10:26]} Nb4 {[%emt 0:13:08]} 27. Rxd4 {[%emt 0:00:06]} Qc5 {[%emt 0:00:26]} 28. Nf3 {[%emt 0:00:31]} Nc6 {[%emt 0:03:46]} 29. Rc1 {[%emt 0:00:14]} Nb4 {[%emt 0:00:00]} 30. Rb1 {[%emt 0:00:46]} Nc6 {[%emt 0:01:00]} 31. Rc1 {[%emt 0:00:14]} Qxc1+ {[%emt 0:03:08]} 32. Bxc1 {[%emt 0:00:31]} Nxd4 {[%emt 0:01:10]} 33. Nxd4 {[%emt 0:00:13]} Rxd4 {[%emt 0:00:06]} 34. Bb2 {[%emt 0:00:48]} Rd1+ {[%emt 0:00:51]} 35. Kh2 {[%emt 0:00:07]} Rd7 {[%emt 0:00:44]} 36. a4 {[%emt 0:02:05]} bxa4 {[%emt 0:04:46]} 37. bxa4 {[%emt 0:00:16]} Rf8 {[%emt 0:02:08]} 38. Qb3+ {[%emt 0:02:28]} Rdf7 {[%emt 0:00:15]} 39. Be5 {[%emt 0:01:05]} Re8 {[%emt 0:01:09]} 40. Bd6 {[%emt 0:01:04]} h6 {[%emt 0:00:50]} 41. Qc4 {[%emt 0:00:26]} a5 {[%emt 0:01:04]} 42. Qb5 {[%emt 0:00:31]} Re6 {[%emt 0:00:42]} 43. Qd5 {[%emt 0:02:02]} Rg6 {[%emt 0:00:31]} 44. Be5 {[%emt 0:00:55]} Bxe5 {[%emt 0:00:37]} 45. fxe5 {[%emt 0:00:04]} Ra6 {[%emt 0:00:26]} 46. e6 {[%emt 0:00:17]} 1-0

[Event "2nd Goa GM Open 2019"]
[Site "Goa"]
[Date "2019.06.20"]
[Round "4.23"]
[White "Aakanksha Hagawane"]
[Black "Debashis, Das"]
[Result "1/2-1/2"]
[ECO "B01"]
[WhiteElo "2271"]
[BlackElo "2544"]
[Annotator "ChessBase"]
[PlyCount "97"]
[EventDate "2019.06.17"]
[EventType "swiss"]
[EventCountry "IND"]
[SourceTitle "playchess.com"]
[Source "ChessBase"]
[SourceQuality "1"]
[TimeControl "5400+30"]

1. e4 {[%emt 0:00:00]} d5 {[%emt 0:01:02]} 2. exd5 {[%emt 0:00:00]} Qxd5 {[%emt 0:00:05]} 3. Nc3 {[%emt 0:00:00]} Qd6 {[%emt 0:00:03]} 4. d4 {[%emt 0:00:11]} Nf6 {[%emt 0:00:05]} 5. Nf3 {[%emt 0:00:16]} c6 {[%emt 0:00:04]} 6. Ne5 {[%emt 0:00:30]} Nbd7 {[%emt 0:00:10]} 7. Nc4 {[%emt 0:00:35]} Qc7 {[%emt 0:00:06]} 8. a4 {[%emt 0:00:14]} g6 {[%emt 0:00:40]} 9. a5 {[%emt 0:01:02]} Nd5 {[%emt 0:06:42]} 10. Nxd5 {[%emt 0:04:34]} cxd5 {[%emt 0:00:13]} 11. Ne3 {[%emt 0:00:30]} Nf6 {[%emt 0:01:29]} 12. Bd3 {[%emt 0:00:47]} Bg7 {[%emt 0:00:57]} 13. O-O {[%emt 0:01:11]} O-O {[%emt 0:00:20]} 14. Bd2 {[%emt 0:07:16]} Rd8 {[%emt 0:04:29]} 15. c3 {[%emt 0:02:49]} Bd7 {[%emt 0:10:16]} 16. Re1 {[%emt 0:04:36]} Bc6 {[%emt 0:07:47]} 17. f4 {[%emt 0:11:15]} e6 {[%emt 0:01:02]} 18. Ng4 {[%emt 0:04:47]} Ne4 {[%emt 0:00:15]} 19. Ne5 {[%emt 0:04:55]} Nd6 {[%emt 0:01:12]} 20. Qe2 {[%emt 0:05:50]} Rac8 {[%emt 0:01:04]} 21. Nxc6 {[%emt 0:14:23]} Qxc6 {[%emt 0:00:52]} 22. b4 {[%emt 0:00:30]} Qd7 {[%emt 0:02:05]} 23. Kh1 {[%emt 0:00:56]} Rc7 {[%emt 0:00:35]} 24. Ra3 {[%emt 0:01:17]} Re8 {[%emt 0:02:22]} 25. Qf3 {[%emt 0:04:52]} f5 {[%emt 0:02:56]} 26. g3 {[%emt 0:01:36]} Qf7 {[%emt 0:05:37]} 27. Kg2 {[%emt 0:06:05]} Bf8 {[%emt 0:01:42]} 28. Qe3 {[%emt 0:00:52]} Qd7 {[%emt 0:00:56]} 29. Qe2 {[%emt 0:00:45]} Qc8 {[%emt 0:02:31]} 30. Qf3 {[%emt 0:00:40]} Be7 {[%emt 0:05:55]} 31. Kh1 {[%emt 0:02:03]} Bd8 {[%emt 0:00:58]} 32. Rc1 {[%emt 0:06:23]} Rf8 {[%emt 0:04:44]} 33. Re1 {[%emt 0:01:16]} Rg7 {[%emt 0:04:05]} 34. Qe3 {[%emt 0:01:18]} Ne4 {[%emt 0:01:38]} 35. Bxe4 {[%emt 0:00:34]} fxe4 {[%emt 0:00:05]} 36. Raa1 {[%emt 0:00:21]} g5 {[%emt 0:00:15]} 37. Rg1 {[%emt 0:01:01]} Rff7 {[%emt 0:14:55]} 38. Qe2 {[%emt 0:02:15]} gxf4 {[%emt 0:01:26]} 39. gxf4 {[%emt 0:00:06]} Bc7 {[%emt 0:03:42]} 40. Rxg7+ {[%emt 0:03:11]} Rxg7 {[%emt 0:00:10]} 41. Rg1 {[%emt 0:01:10]} Qf8 {[%emt 0:01:21]} 42. Rxg7+ {[%emt 0:01:00]} Qxg7 {[%emt 0:05:41]} 43. Qb5 {[%emt 0:00:58]} Qg4 {[%emt 0:03:59]} 44. Qe8+ {[%emt 0:00:21]} Kg7 {[%emt 0:00:04]} 45. Qe7+ {[%emt 0:00:09]} Kg6 {[%emt 0:00:16]} 46. Qe8+ {[%emt 0:00:57]} Kg7 {[%emt 0:00:12]} 47. Qe7+ {[%emt 0:00:31]} Kg6 {[%emt 0:00:05]} 48. Qe8+ {[%emt 0:00:08]} Kg7 {[%emt 0:00:03]} 49. Qe7+ {[%emt 0:00:12]} 1/2-1/2